fUSD/lending_fUSD_20260327
["ID","MTS","AMOUNT","RATE_DAILY","PERIOD"]
[418946807,1774614638978,-322.53229899,0.0004095,60]
[418946809,1774614640281,-36982.90190837,0.0004095,60]
[418946810,1774614640340,-1330.0,0.0004095,60]
[418946811,1774614640352,-1125.83157986,0.0004095,60]
[418946812,1774614640621,-512.24432581,0.0004095,60]
[418946823,1774614642983,-150.6665,0.00030795,30]
[418946824,1774614642992,-150.6665,0.00030802,30]
[418946825,1774614643001,-34598.70018815,0.0004095,60]
[418946834,1774614645595,-22992.73116164,0.0004095,60]
[418946835,1774614645604,-690.0,0.00040967,7]
[418946836,1774614645614,-500.0,0.00040989,2]
[418946837,1774614645624,-200.0,0.00041016,2]
[418946838,1774614645634,-2000.0,0.00041016,120]
[418946839,1774614645644,-368.55,0.00041016,120]
[418946840,1774614645653,-569.48,0.00041016,2]
[418946841,1774614645662,-500.0,0.00041044,2]
[418946842,1774614645671,-150.0,0.00041095,17]
[418946843,1774614645681,-500.0,0.00041095,7]
[418946844,1774614645690,-500.0,0.00041095,7]
[418946845,1774614645700,-500.0,0.00041095,17]
[418946846,1774614645710,-154.0,0.00041096,30]
[418946847,1774614645719,-153.0,0.00041096,30]
[418946848,1774614645729,-1360.0,0.00041096,2]
[418946849,1774614645738,-500.0,0.00041099,2]
[418946850,1774614645748,-500.0,0.00041154,2]
[418946851,1774614645766,-706.72,0.00041241,7]
[418946852,1774614645779,-200.0,0.00041358,120]
[418946853,1774614645788,-500.0,0.00041368,17]
[418946854,1774614645797,-500.0,0.00041368,17]
[418946855,1774614645807,-500.0,0.00041368,7]
[418946856,1774614645817,-500.0,0.00041368,17]
[418946857,1774614645827,-155.61554798,0.00041369,17]
[418946858,1774614645838,-500.0,0.00041369,7]
[418946859,1774614645847,-500.0,0.00041369,7]
[418946860,1774614645857,-500.0,0.00041369,17]
[418946861,1774614645867,-663.08339637,0.00041387,120]
[418946862,1774614645881,-336.91660363,0.00041387,120]
[418946863,1774614645890,-993.7410146,0.000414,2]
[418946864,1774614645929,-1006.2589854,0.000414,2]
[418946865,1774614645939,-834.25,0.00041588,14]
[418946866,1774614645949,-500.0,0.00041642,17]
[418946867,1774614645958,-15.53686697,0.00041642,17]
[418946868,1774614645970,-475.0,0.00041642,17]
[418946869,1774614646101,-19.30296573,0.00041642,17]
[418946870,1774614646111,-500.0,0.00041642,7]
[418946871,1774614646121,-500.0,0.00041643,7]
[418946872,1774614646131,-442.69703427,0.00041643,7]
[418946873,1774614646143,-57.30296573,0.00041643,7]
[418946874,1774614646153,-500.0,0.00041643,17]
[418946875,1774614646163,-410.4306605,0.00041833,2]
[418946876,1774614646175,-206.2393395,0.00041833,2]
[418946877,1774614646184,-500.0,0.00041833,17]
[418946878,1774614646194,-1542.7281605,0.00041833,2]
[418946879,1774614646206,-125.8418395,0.00041833,2]
[418946880,1774614646216,-151.0,0.00041834,30]
[418946881,1774614646226,-288.7581606,0.00041834,2]
[418946894,1774615647217,-332.61,0.0002084,2]
[418946895,1774615647242,-117.55689461,0.00024719,2]
[418946896,1774615762175,-184.44,0.00024808,2]
[418946897,1774615762196,-151.0,0.00025083,2]
[418946898,1774615762219,-450.16,0.00025724,2]
[418946899,1774615762241,-2000.0,0.000282,2]
[418946900,1774615762261,-184.81000313,0.00030495,2]
[418946901,1774615762284,-158.989,0.0003056,30]
[418946902,1774615762306,-171.05550157,0.00030565,2]
[418946903,1774615762328,-2000.0,0.000319,2]
[418946904,1774615762349,-1000.0,0.00033903,120]
[418946905,1774615762371,-2000.0,0.000356,2]
[418946906,1774615762393,-1350.0,0.00035616,120]
[418946907,1774615762416,-747.37309033,0.00035616,120]
[418946910,1774615831816,-296.371,0.00034888,2]
[418946911,1774615831826,-602.62690967,0.00035616,120]
[418946912,1774615831836,-178.94,0.00036639,2]
[418946913,1774615831846,-187.0,0.00038356,2]
[418946914,1774615831856,-187.0,0.00038356,2]
[418946915,1774615831866,-187.0,0.00038356,2]
[418946916,1774615831876,-661.06209032,0.000393,2]
[418946917,1774615831911,-265.84703492,0.000393,2]
[418946918,1774615831947,-427.13813156,0.000393,2]
[418946919,1774615831959,-474.202935,0.000393,2]
[418946920,1774615831971,-171.7498082,0.000393,2]
[418946921,1774615831981,-2000.0,0.00040203,2]
[418946922,1774615831991,-83.24598573,0.00040254,120]
[418946923,1774615832046,-3156.75401427,0.00040254,120]
[418946924,1774615832056,-150.0,0.0004046,2]
[418946925,1774615832067,-1000.0,0.00040571,120]
[418946926,1774615832076,-645.3333,0.00040669,2]
[418946927,1774615832086,-1000.0,0.00040669,2]
[418946928,1774615832095,-136.84851944,0.00040712,120]
[418946929,1774615832107,-1863.15148056,0.00040712,120]
[418946930,1774615832116,-113.39906242,0.00040718,2]
[418946931,1774615832139,-142.60093758,0.00040718,2]
[418946932,1774615832149,-847.89906242,0.0004085,120]
[418946935,1774615837907,-152.10093758,0.0004085,120]
[418946936,1774615837917,-1279.3,0.0004094,59]
[418946937,1774615837926,-185.472,0.0004094,59]
[418946938,1774615837937,-8941.32,0.0004094,10]
[418946939,1774615837946,-7451.1,0.0004094,10]
[418946940,1774615837956,-152.51939348,0.00040949,15]
[418946941,1774615837969,-28424.53131453,0.0004095,60]
[418946942,1774615837981,-9953.8234575,0.0004095,60]
[418946943,1774615837993,-1748.53313976,0.0004095,60]
[418946944,1774615838004,-637.50353872,0.0004095,60]
[418946945,1774615838085,-69999.99999998,0.0004095,60]
[418946946,1774615838142,-1070.02934665,0.0004095,60]
[418946947,1774615838154,-2835.75942345,0.0004095,60]
[418946948,1774615838167,-8460.0,0.0004095,60]
[418946949,1774615838178,-83893.81977941,0.0004095,60]
[418946950,1774615838190,-151.0,0.0004097,30]
[418946951,1774615838200,-4166.4152684,0.00041049,2]
[418946952,1774615838210,-200.0,0.00041089,2]
[418946953,1774615838220,-1372.0,0.00041096,2]
[418946954,1774615838229,-256.0,0.00041736,2]
[418946955,1774615838239,-500.0,0.0004183,2]
[418946956,1774615838249,-500.0,0.00041833,17]
[418946957,1774615838258,-500.0,0.00041833,17]
[418946958,1774615838268,-500.0,0.00041833,17]
[418946959,1774615838279,-500.0,0.00041833,17]
[418946960,1774615838288,-500.0,0.00041833,17]
[418946961,1774615838297,-500.0,0.00041833,17]
[418946962,1774615838307,-500.0,0.00041833,17]
[418946964,1774615838317,-151.0,0.00041833,30]
[418946966,1774615838326,-151.0,0.00041833,30]
[418946968,1774615838336,-151.0,0.00041833,30]
[418946969,1774615838346,-151.0,0.00041833,30]
[418946970,1774615838550,-151.0,0.00041833,30]
[418946971,1774615838560,-151.0,0.00041833,30]
[418946972,1774615838570,-174.61919142,0.00041833,30]
[418946973,1774615838579,-500.0,0.00041833,30]
[418946974,1774615838588,-6888.0,0.00041833,30]
[418946975,1774615838597,-500.0,0.00041833,30]
[418946976,1774615838606,-7142.856,0.00041833,30]
[418946977,1774615838615,-500.0,0.00041833,30]
[418946978,1774615838624,-7407.141672,0.00041833,30]
[418946979,1774615838634,-7681.20591386,0.00041833,30]
[418946980,1774615838643,-500.0,0.00041833,30]
[418946981,1774615838652,-7965.41053268,0.00041833,30]
[418946982,1774615838662,-500.0,0.00041833,30]
[418946983,1774615838672,-500.0,0.00041833,30]
[418946984,1774615838686,-7460.13072239,0.00041833,30]
[418946985,1774615838695,-500.0,0.00041833,30]
[418946986,1774615838704,-168.65185757,0.00041833,30]
[418946987,1774615838714,-201.93286099,0.00041833,30]
[418946988,1774615838723,-170.0,0.00041833,30]
[418946989,1774615838732,-176.29,0.00041833,30]
[418946990,1774615838742,-182.81273,0.00041833,30]
[418946991,1774615838753,-189.57680101,0.00041833,30]
[418946992,1774615838762,-196.59114265,0.00041833,30]
[418946993,1774615838772,-203.86501493,0.00041833,30]
[418946994,1774615838782,-211.40802048,0.00041833,30]
[418946995,1774615838792,-219.23011724,0.00041833,30]
[418946996,1774615838802,-3233.64551795,0.00041834,120]
[418946997,1774615838811,-1000.0,0.00041834,120]
[418946998,1774615838820,-1000.0,0.00041834,120]
[418946999,1774615838830,-1000.0,0.00041834,120]
[418947000,1774615838840,-1000.0,0.00041834,120]
[418947001,1774615838849,-1000.0,0.00041834,120]
[418947002,1774615838859,-1000.0,0.00041834,120]
[418947003,1774615838868,-1000.0,0.00041834,120]
[418947004,1774615838878,-1000.0,0.00041834,120]
[418947005,1774615838887,-1000.0,0.00041834,120]
[418947006,1774615838897,-1000.0,0.00041834,120]
[418947007,1774615838906,-1000.0,0.00041834,120]
[418947008,1774615838916,-1000.0,0.00041834,120]
[418947009,1774615838925,-1000.0,0.00041834,120]
[418947010,1774615838937,-1000.0,0.00041834,120]
[418947011,1774615838946,-1000.0,0.00041834,120]
[418947012,1774615838957,-1000.0,0.00041834,120]
[418947013,1774615838966,-1000.0,0.00041834,120]
[418947014,1774615838976,-1000.0,0.00041834,120]
[418947015,1774615838991,-1000.0,0.00041834,120]
[418947016,1774615839001,-1000.0,0.00041834,120]
[418947017,1774615839011,-1000.0,0.00041834,120]
[418947018,1774615839020,-1000.0,0.00041834,120]
[418947019,1774615839030,-1000.0,0.00041834,120]
[418947020,1774615839039,-1000.0,0.00041834,120]
[418947021,1774615839049,-1000.0,0.00041834,120]
[418947022,1774615839059,-1000.0,0.00041834,120]
[418947023,1774615839068,-1000.0,0.00041834,120]
[418947024,1774615839077,-1000.0,0.00041834,120]
[418947025,1774615839087,-1000.0,0.00041834,120]
[418947026,1774615839096,-1000.0,0.00041834,120]
[418947027,1774615839105,-1000.0,0.00041834,120]
[418947028,1774615839115,-1000.0,0.00041834,120]
[418947029,1774615839124,-1000.0,0.00041834,120]
[418947030,1774615839134,-1000.0,0.00041834,120]
[418947031,1774615839144,-1000.0,0.00041834,120]
[418947032,1774615839153,-1000.0,0.00041834,120]
[418947033,1774615839163,-1000.0,0.00041834,120]
[418947034,1774615839172,-1000.0,0.00041834,120]
[418947035,1774615839182,-1000.0,0.00041834,120]
[418947036,1774615839193,-1000.0,0.00041834,120]
[418947037,1774615839202,-1000.0,0.00041834,120]
[418947038,1774615839212,-1000.0,0.00041834,120]
[418947039,1774615839221,-1000.0,0.00041834,120]
[418947040,1774615839231,-1000.0,0.00041834,120]
[418947041,1774615839240,-1000.0,0.00041834,120]
[418947042,1774615839249,-1000.0,0.00041834,120]
[418947043,1774615839259,-1000.0,0.00041834,120]
[418947044,1774615839268,-657.10994,0.00041834,120]
[418947045,1774615839278,-702.0,0.00041916,7]
[418947046,1774615839287,-10038.04662373,0.00042,120]
[418947047,1774615839298,-2862.87,0.00042,120]
[418947048,1774615839307,-1597.47,0.00042,120]
[418947049,1774615839317,-150.0,0.00042,2]
[418947050,1774615839326,-657.10995,0.00042034,120]
[418947051,1774615839335,-898.2,0.00042053,2]
[418947052,1774615839347,-564.39034329,0.00042053,2]
[418947055,1774615840084,-349.25228331,0.00042053,2]
[418947056,1774615840094,-898.2,0.00042053,2]
[418947057,1774615840104,-913.6426266,0.00042053,2]
[418947058,1774615840113,-898.2,0.00042053,2]
[418947059,1774615840123,-488.16969253,0.00042053,2]
[418947060,1774615840145,-425.47293407,0.00042053,2]
[418947061,1774615840155,-898.2,0.00042053,2]
[418947062,1774615840164,-70.32706593,0.00042053,2]
[418947063,1774615840427,-505.70414008,0.00042053,2]
[418947064,1774615840440,-337.61142059,0.00042053,2]
[418947065,1774615840450,-300.0,0.00042053,2]
[418947066,1774615840460,-913.6426266,0.00042053,2]
[418947067,1774615840469,-898.2,0.00042053,2]
[418947068,1774615840479,-898.2,0.00042053,2]
[418947069,1774615840489,-913.6426266,0.00042053,2]
[418947070,1774615840499,-898.2,0.00042053,2]
[418947071,1774615840509,-913.6426266,0.00042053,2]
[418947072,1774615840518,-500.0,0.00042106,31]
[418947073,1774615840528,-627.65040148,0.00042106,31]
[418947074,1774615840538,-500.0,0.00042106,31]
[418947075,1774615840548,-500.0,0.00042106,31]
[418947076,1774615840558,-197.08693407,0.00042106,31]
[418947077,1774615840568,-500.0,0.00042106,31]
[418947078,1774615840578,-500.0,0.00042106,31]
[418947079,1774615840587,-500.0,0.00042106,31]
[418947080,1774615840598,-500.0,0.00042106,31]
[418947081,1774615840607,-500.0,0.00042106,31]
[418947082,1774615840617,-500.0,0.00042106,31]
[418947083,1774615840626,-500.0,0.00042106,31]
[418947084,1774615840635,-500.0,0.00042106,31]
[418947085,1774615840644,-500.0,0.00042106,31]
[418947086,1774615840654,-500.0,0.00042106,31]
[418947087,1774615840663,-500.0,0.00042106,31]
[418947088,1774615840673,-500.0,0.00042106,31]
[418947089,1774615840682,-500.0,0.00042107,17]
[418947090,1774615840692,-500.0,0.00042107,17]
[418947091,1774615840702,-500.0,0.00042107,17]
[418947092,1774615840712,-299.8581775,0.00042107,17]
[418947093,1774615840721,-500.0,0.00042107,17]
[418947094,1774615840731,-500.0,0.00042107,17]
[418947095,1774615840741,-500.0,0.00042107,17]
[418947096,1774615840750,-250.0,0.0004211,91]
[418947097,1774615840760,-657.10995,0.00042234,120]
[418947098,1774615840770,-594.15648792,0.00042252,8]
[418947099,1774615840782,-122.8778676,0.00042252,8]
[418947100,1774615840791,-500.0,0.00042289,17]
[418947101,1774615840801,-500.0,0.00042289,17]
[418947102,1774615840810,-238.63304733,0.00042289,17]
[418947107,1774615842998,-261.36695267,0.00042289,17]
[418947108,1774615843008,-500.0,0.00042289,17]
[418947109,1774615843019,-500.0,0.00042289,17]
[418947110,1774615843029,-2563.3,0.00042289,2]
[418947111,1774615843039,-591.7,0.00042289,2]
[418947112,1774615843049,-565.61304733,0.00042289,2]
[418947113,1774615843329,-648.92043422,0.0004228,10]
[418947115,1774615845677,-3408.87304597,0.00041734,28]
[418947116,1774615845687,-5560.32956578,0.0004228,10]
[418947117,1774615845697,-1033.42695267,0.00042289,2]
[418947118,1774615845706,-500.0,0.00042289,17]
[418947119,1774615845715,-11456.70164941,0.00042289,5]
[418947122,1774615845735,-56317.74559642,0.00042289,5]
[418947124,1774615845744,-13432.25440358,0.0004229,4]
[418947128,1774615845795,-1995.75,0.0004229,4]
[418947130,1774615845914,-413.64999428,0.0004229,4]
[418947131,1774615846302,-64823.35018344,0.0004229,4]
[418947132,1774615846312,-500.0,0.00042293,2]
[418947133,1774615846322,-166.09104956,0.00042293,17]
[418947134,1774615846332,-500.0,0.00042293,17]
[418947135,1774615846342,-500.0,0.00042293,2]
[418947136,1774615846353,-500.0,0.00042293,17]
[418947137,1774615846362,-7861.57,0.00042296,30]
[418947138,1774615846371,-500.0,0.00042299,7]
[418947139,1774615846381,-500.0,0.00042299,17]
[418947140,1774615846390,-500.0,0.00042299,7]
[418947141,1774615846399,-500.0,0.00042299,17]
[418947142,1774615846409,-2239.96,0.00042299,17]
[418947143,1774615846420,-500.0,0.00042299,7]
[418947144,1774615846429,-185.33093998,0.00042299,17]
[418947145,1774615846439,-433.34819948,0.00042299,17]
[418947146,1774615846450,-500.0,0.00042299,17]
[418947147,1774615846459,-500.0,0.00042299,14]
[418947148,1774615846468,-273.52,0.000423,30]
[418947150,1774615846477,-130158.75918165,0.000423,60]
[418947151,1774615846489,-415.74943654,0.000423,60]
[418947152,1774615846521,-1951.15915836,0.000423,60]
[418947153,1774615846532,-19338.68268112,0.000423,60]
[418947154,1774615846544,-44939.9624227,0.000423,60]
[418947196,1774616738986,-506.00003,0.00013111,2]
[418947197,1774616824210,151.76215787,0.00013111,2]
[418947198,1774616830119,-191.80657275,0.00016,2]
[418947199,1774616949207,-227.02109222,0.000159,2]
[418947200,1774616949230,-2982.76391525,0.000159,2]
[418947201,1774616949255,-3962.66907853,0.00016,2]
[418947202,1774616958149,-28385.77161246,0.00016,2]
[418947204,1774617009859,81.16578335,9.5e-05,3]
[418947207,1774617031941,-1000.0,9.5e-05,3]
[418947208,1774617031997,-1000.0,9.5e-05,3]
[418947209,1774617032055,-506.276,9.5e-05,3]
[418947210,1774617032166,-2270.00000004,9.5e-05,3]
[418947219,1774617038055,-500.0,9.5e-05,3]
[418947220,1774617038066,-5559.03372,9.5e-05,3]
[418947221,1774617038129,-531.6,9.5e-05,3]
[418947222,1774617038199,-58594.40135121,9.5e-05,3]
[418947223,1774617038209,-338.0,0.0001,2]
[418947224,1774617038218,-338.0,0.00010563,2]
[418947225,1774617038229,-339.31423527,0.00011091,2]
[418947226,1774617038239,-207.89999999,0.000159,2]
[418947227,1774617038249,-339640.27499277,0.00016,2]
[418947232,1774617040981,-451.18946949,0.00016,2]
[418947233,1774617040992,-1132.87960594,0.00016,2]
[418947234,1774617041010,-3451.94947151,0.00016,2]
[418947235,1774617041022,-292.97811663,0.00016,2]
[418947242,1774617043355,-610.77887769,0.00016,2]
[418947243,1774617043367,-71535.50747722,0.00016,2]
[418947244,1774617043616,-39061.60300685,0.00016,2]
[418947253,1774617046369,-1136.82271602,0.00016,2]
[418947254,1774617046381,-2370.0904925,0.00016,2]
[418947255,1774617046418,-397.27999999,0.00016,2]
[418947256,1774617046477,-6663.69200001,0.00016,2]
[418947257,1774617046489,-3269.89391248,0.00016,2]
[418947258,1774617046512,-2999.35387847,0.00016,2]
[418947273,1774617084775,-2000.0,0.00016,2]
[418947277,1774618025099,-540.5519726,0.000159,2]
[418947278,1774618145206,-500.0,0.00015999,2]
[418947279,1774618145227,-500.0,0.00015999,2]
[418947280,1774618145250,-142358.2751216,0.00016,2]
[418947284,1774618226875,-179851.69244972,0.00016,2]
[418947285,1774618226912,-198.81976891,0.00016,2]
[418947289,1774618238253,-173.7417,0.000161,2]
[418947290,1774618238263,-173.7417,0.000161,2]
[418947291,1774618238272,-173.7417,0.000161,2]
[418947292,1774618238282,-173.7417,0.000161,2]
[418947293,1774618238291,-173.7417,0.000161,2]
[418947294,1774618238300,-33.25918845,0.000161,2]
[418947295,1774618238379,-140.48251155,0.000161,2]
[418947296,1774618238390,-162.66,0.00016186,2]
[418947297,1774618238400,-198.81976889,0.00019334,2]
[418947298,1774618238409,-202.0,0.000209,2]
[418947299,1774618238419,-162.66,0.00021582,2]
[418947300,1774618238428,-150.0,0.000218,2]
[418947301,1774618238438,-202.0,0.000219,2]
[418947302,1774618238448,-284.2716269,0.00022419,2]
[418947303,1774618238457,-198.81976889,0.00022668,2]
[418947304,1774618238467,-202.0,0.000229,2]
[418947305,1774618238476,-202.0,0.000239,2]
[418947306,1774618238486,-150.0,0.00024658,2]
[418947307,1774618238496,-284.2716269,0.00024768,2]
[418947308,1774618238505,-202.0,0.000249,2]
[418947309,1774618238515,-150.0,0.00025,2]
[418947310,1774618238525,-150.0,0.0002589,2]
[418947311,1774618238535,-208.0,0.000259,2]
[418947312,1774618238545,-198.81976889,0.00026001,2]
[418947313,1774618238555,-162.66,0.00026977,2]
[418947314,1774618238564,-284.2716269,0.00027117,2]
[418947316,1774618238573,-150.0,0.00027185,2]
[418947317,1774618238582,-2467.0,0.00027359,2]
[418947318,1774618238591,-1216.0,0.00027359,2]
[418947319,1774618238600,-150.0,0.00028544,2]
[418947320,1774618238611,-198.81976889,0.00029335,2]
[418947321,1774618238620,-284.2716269,0.00029466,2]
[418947322,1774618238631,-179.04,0.0002958,2]
[418947323,1774618238640,-2067.0,0.000298,2]
[418947324,1774618238650,-150.0,0.00029971,2]
[418947325,1774618238660,-2467.0,0.00030359,2]
[418947326,1774618238669,-1216.0,0.00030359,2]
[418947327,1774618238679,-5533.0,0.000308,3]
[418947328,1774618238688,-160.0,0.00030997,3]
[418947330,1774618238697,-150.0,0.0003147,2]
[418947332,1774618238706,-5533.0,0.000318,5]
[418947333,1774618238716,-155.92500001,0.000319,2]
[418947334,1774618238725,-215.12,0.00032248,120]
[418947335,1774618238735,-1405.62,0.00032332,2]
[418947336,1774618238745,-162.66,0.00032373,2]
[418947337,1774618238756,-153.6,0.00032377,2]
[418947338,1774618238766,-150.0,0.00032377,2]
[418947339,1774618238775,-1000.0,0.00032427,2]
[418947340,1774618238784,-2000.0,0.00032461,120]
[418947341,1774618238794,-198.81976889,0.00032669,2]
[418947342,1774618238803,-191.964074,0.00032681,120]
[418947343,1774618238812,-300.0,0.0003287,120]
[418947344,1774618238822,-150.0,0.00033043,2]
[418947345,1774618238831,-159.16,0.00033159,7]
[418947346,1774618238841,-159.16,0.00033159,7]
[418947347,1774618238850,-159.16,0.00033159,7]
[418947348,1774618238860,-153.6,0.00033187,2]
[418947349,1774618238869,-2467.0,0.00033359,2]
[418947350,1774618238879,-159.16,0.00033707,7]
[418947351,1774618238888,-159.16,0.00033707,7]
[418947352,1774618238898,-159.16,0.00033707,7]
[418947353,1774618238908,-155.92499999,0.00033915,2]
[418947354,1774618238918,-321.77575843,0.00033956,2]
[418947355,1774618238928,-153.6,0.00033996,2]
[418947356,1774618238937,-770.16690347,0.0003423,2]
[418947357,1774618238946,-159.16,0.00034255,7]
[418947358,1774618238956,-159.16,0.00034255,7]
[418947359,1774618238965,-159.16,0.00034255,7]
[418947360,1774618238975,-202.0,0.00034362,30]
[418947361,1774618238984,-160.0,0.00034362,30]
[418947362,1774618238994,-200.0,0.00034702,2]
[418947363,1774618239004,-209.21,0.00034702,2]
[418947364,1774618239014,-153.6,0.00034806,2]
[418947365,1774618239024,-5641.0,0.00035198,2]
[418947366,1774618239033,-202.0,0.00035362,30]
[418947367,1774618239048,-160.0,0.00035362,30]
[418947368,1774618239058,-153.6,0.00035615,2]
[418947369,1774618239067,-159.16,0.00035625,7]
[418947370,1774618239077,-159.16,0.00035625,7]
[418947371,1774618239086,-159.16,0.00035625,7]
[418947372,1774618239096,-155.92499999,0.0003593,2]
[418947373,1774618239105,-198.81976889,0.00036003,2]
[418947374,1774618239115,-4789.0,0.00036011,2]
[418947375,1774618239124,-2467.0,0.00036359,2]
[418947376,1774618239134,-202.0,0.00036362,30]
[418947377,1774618239144,-160.0,0.00036362,30]
[418947378,1774618239154,-1542.0,0.00037258,2]
[418947379,1774618239163,-2000.0,0.000373,2]
[418947380,1774618239173,-202.0,0.00037362,30]
[418947381,1774618239186,-160.0,0.00037362,30]
[418947382,1774618239195,-500.0,0.00037438,120]
[418947383,1774618239204,-193.51661,0.00037775,21]
[418947384,1774618239214,-207.851174,0.00037775,21]
[418947385,1774618239223,-155.92499999,0.00037945,2]
[418947386,1774618239233,-686.8016,0.00038,30]
[418947387,1774618239242,-166.66,0.00038057,30]
[418947388,1774618239251,-185.471,0.00038314,51]
[418947389,1774618239261,-1922.947,0.00038314,51]
[418947390,1774618239270,-251.0,0.00038356,2]
[418947391,1774618239280,-273.0,0.00038356,2]
[418947392,1774618239452,-291.0,0.00038356,2]
[418947393,1774618239462,-202.0,0.00038362,30]
[418947394,1774618239472,-160.0,0.00038362,30]
[418947395,1774618239482,-2415.0,0.00038365,2]
[418947396,1774618239492,-2542.34942926,0.00038446,2]
[418947397,1774618239502,-500.0,0.00038535,17]
[418947398,1774618239511,-500.0,0.00038535,17]
[418947399,1774618239521,-2495.36,0.00038535,10]
[418947400,1774618239530,-4503.18701232,0.00038536,4]
[418947401,1774618239540,-151.0,0.00038545,120]
[418947402,1774618239549,-188.023774,0.00038545,120]
[418947403,1774618239558,-199252.55330734,0.00038546,7]
[418947404,1774618239575,-13400.82074936,0.00038546,7]
[418947405,1774618239584,-54442.28875424,0.00038546,7]
[418947406,1774618239595,-1530.69196928,0.00038546,7]
[418947407,1774618239610,-343.57847973,0.00038546,7]
[418947408,1774618240772,-150.0,0.00034696,2]
[418947409,1774618240782,-150.0,0.0003643,2]
[418947410,1774618240791,-49.885,0.00038546,7]
[418947411,1774618240804,-3586.811,0.00038546,7]
[418947412,1774618240815,-1666.26749236,0.00038546,7]
[418947413,1774618240826,-249.708826,0.00038546,120]
[418947414,1774618240835,-87.9130565,0.00038546,120]
[418947415,1774618240890,-63.0869435,0.00038546,120]
[418947416,1774618240900,-153.474754,0.00038546,120]
[418947417,1774618240909,-151.0,0.00038546,7]
[418947418,1774618240918,-176.39925,0.00038546,120]
[418947419,1774618240927,-151.0,0.00038546,120]
[418947420,1774618240936,-166.66,0.00038858,30]
[418947421,1774618240946,-198.81976889,0.00039336,2]
[418947422,1774618240955,-200.0,0.00039346,2]
[418947423,1774618240964,-279.87298335,0.00039346,2]
[418947424,1774618240975,-20.12701665,0.00039346,2]
[418947425,1774618240984,-1800.76766867,0.00039359,2]
[418947426,1774618241014,-666.23233133,0.00039359,2]
[418947427,1774618241023,-118.30338231,0.00039362,30]
[418947435,1774618243354,-924.0,0.00027359,2]
[418947436,1774618243364,-924.0,0.00030359,2]
[418947437,1774618243373,-826.199,0.00033359,2]
[418947439,1774618243384,-150.0,0.00038252,2]
[418947440,1774618243394,-4758.49,0.00038436,10]
[418947441,1774618243405,-83.69661769,0.00039362,30]
[418947442,1774618243415,-168.0,0.00039362,30]
[418947443,1774618243425,-3685.0,0.00039455,2]
[418947444,1774618243435,-2542.34942924,0.00039582,2]
[418947445,1774618243445,-166.66,0.0003966,30]
[418947446,1774618243455,-404.0,0.000399,5]
[418947447,1774618243466,-175.02395778,0.000399,2]
[418947448,1774618243477,-478.02290368,0.000399,8]
[418947449,1774618243487,-155.92499999,0.00039959,15]
[418947450,1774618243497,-2251.59350616,0.0003998,4]
[418947451,1774618243507,-4503.18701232,0.0003999,4]
[418947452,1774618243516,-151.0,0.0003999,120]
[418947453,1774618243526,-500.0,0.00039999,31]
[418947454,1774618243536,-487.96085384,0.00039999,31]
[418947455,1774618243547,-439.35528103,0.00039999,31]
[418947456,1774618243557,-500.0,0.00039999,31]
[418947457,1774618243566,-500.0,0.00039999,31]
[418947458,1774618243576,-500.0,0.00039999,31]
[418947459,1774618243587,-500.0,0.00039999,31]
[418947460,1774618243597,-500.0,0.00039999,31]
[418947461,1774618243607,-500.0,0.00039999,31]
[418947462,1774618243617,-500.0,0.00039999,31]
[418947463,1774618243627,-500.0,0.00039999,31]